bitfinex/quotes_BTCUSD_20240820
["timestamp","ask_amount","ask_price","bid_price","bid_amount"]
[1724159520554,0.00231003,60572.0,60571.0,1.86664301]
[1724159520788,0.00231003,60572.0,60571.0,1.86664202]
[1724159521488,0.00231003,60572.0,60571.0,2.13279402]
[1724159521718,1e-08,60572.0,60571.0,2.2831946]
[1724159521950,1e-08,60572.0,60571.0,2.28320966]
[1724159522422,1e-08,60572.0,60571.0,3.00320966]
[1724159524095,1e-08,60572.0,60571.0,3.28590966]
[1724159524676,1e-08,60572.0,60571.0,3.47454602]
[1724159525762,0.00082501,60572.0,60571.0,3.47454602]
[1724159525962,1e-08,60572.0,60571.0,3.45251535]
[1724159526163,1e-08,60572.0,60571.0,3.46951535]
[1724159526379,0.0617,60595.0,60594.0,1.193234]
[1724159526600,0.0617,60595.0,60594.0,1.45723698]
[1724159526801,0.0617,60595.0,60594.0,1.48023698]
[1724159527620,0.000825,60604.0,60603.0,0.660032]
[1724159528109,0.138425,60604.0,60603.0,0.660032]
[1724159530084,0.138425,60604.0,60603.0,0.924045]
[1724159530492,0.138425,60604.0,60603.0,1.08904798]
[1724159530703,0.061925,60604.0,60603.0,1.45506098]
[1724159530903,0.061925,60604.0,60603.0,1.47806098]
[1724159531107,0.000825,60604.0,60603.0,1.47806098]
[1724159531280,0.000825,60604.0,60603.0,1.48006098]
[1724159531484,0.000825,60604.0,60603.0,2.63697398]
[1724159531945,0.003825,60604.0,60603.0,2.63697398]
[1724159532520,1e-06,60604.0,60603.0,2.63697398]
[1724159533444,0.000825,60608.0,60607.0,1.192977]
[1724159533634,0.000825,60608.0,60607.0,2.58267998]
[1724159534213,0.000825,60608.0,60607.0,2.84667498]
[1724159534776,0.000825,60608.0,60607.0,2.86067498]
[1724159535490,0.000825,60608.0,60607.0,2.9383465]
[1724159536327,0.000825,60608.0,60607.0,2.9523465]
[1724159537202,0.000825,60608.0,60607.0,2.9383465]
[1724159537576,0.000825,60608.0,60607.0,2.9523465]
[1724159537828,0.00056766,60608.0,60607.0,2.9523465]
[1724159538221,0.00056766,60608.0,60607.0,2.9383465]
[1724159538389,0.00056766,60608.0,60607.0,2.9523465]
[1724159539179,0.00056766,60608.0,60607.0,2.9383465]
[1724159539932,0.00056766,60608.0,60607.0,2.9523465]
[1724159540066,0.00056766,60608.0,60607.0,2.9243465]
[1724159540500,0.00056766,60608.0,60607.0,2.3623315]
[1724159540708,0.00056766,60608.0,60607.0,2.4943285]
[1724159541124,0.00056766,60608.0,60607.0,2.5083285]
[1724159544591,0.07646766,60608.0,60607.0,1.9386335]
[1724159544795,0.13696766,60608.0,60607.0,0.4906435]
[1724159544965,0.13696766,60608.0,60607.0,0.159997]
[1724159545419,0.13696766,60608.0,60607.0,0.028]
[1724159545792,0.13696766,60608.0,60603.0,0.264009]
[1724159545793,0.00056766,60608.0,60606.0,0.131999]
[1724159546139,0.138,60607.0,60606.0,0.131999]
[1724159546339,0.138,60607.0,60606.0,0.231999]
[1724159546788,0.138,60607.0,60596.0,0.264043]
[1724159546789,0.0658,60602.0,60596.0,0.264043]
[1724159547014,0.1438,60601.0,60600.0,0.396038]
[1724159547623,0.1438,60601.0,60585.0,1.35834593]
[1724159547624,0.1385,60599.0,60589.0,0.264072]
[1724159547778,0.00292434,60605.0,60598.0,0.132015]
[1724159547779,0.1385,60604.0,60598.0,0.132015]
[1724159547979,0.0628,60604.0,60596.0,0.264039]
[1724159548199,0.0628,60601.0,60600.0,0.132011]
[1724159548362,0.1445,60601.0,60600.0,0.132011]
[1724159548755,0.0628,60601.0,60598.0,0.264033]
[1724159548992,0.0764,60600.0,60599.0,0.1]
[1724159549207,0.1365,60600.0,60599.0,0.1]
[1724159549401,0.1365,60600.0,60599.0,0.496045]
[1724159549777,0.1365,60600.0,60599.0,0.760075]
[1724159550858,0.1375,60600.0,60599.0,0.760075]
[1724159551018,0.1405,60600.0,60599.0,0.760075]
[1724159552246,0.1395,60600.0,60599.0,0.760075]
[1724159552653,0.1405,60600.0,60599.0,0.760075]
[1724159552866,0.1405,60600.0,60599.0,0.496045]
[1724159553572,0.1405,60600.0,60599.0,0.232015]
[1724159553733,0.1365,60600.0,60599.0,0.232015]
[1724159553932,0.1375,60600.0,60599.0,0.232015]
[1724159554251,0.1395,60600.0,60599.0,0.232015]
[1724159554847,0.1395,60600.0,60599.0,0.496045]
[1724159555634,0.1395,60600.0,60599.0,0.232015]
[1724159555838,0.1365,60600.0,60599.0,0.232015]
[1724159556043,0.1365,60600.0,60599.0,0.496045]
[1724159556245,0.1395,60600.0,60599.0,0.496045]
[1724159556510,0.1395,60600.0,60599.0,0.760075]
[1724159556909,0.1395,60600.0,60599.0,0.496045]
[1724159557071,0.1385,60600.0,60599.0,0.496045]
[1724159557470,0.1365,60600.0,60599.0,0.496045]
[1724159557715,0.1365,60600.0,60599.0,0.1]
[1724159557890,0.000825,60601.0,60590.0,0.16400298]
[1724159557891,0.1417,60594.0,60590.0,0.16400298]
[1724159558098,0.1417,60594.0,60585.0,1.09425793]
[1724159558099,0.0656,60592.0,60587.0,0.264078]
[1724159558295,0.0656,60592.0,60591.0,0.132031]
[1724159558296,0.1417,60592.0,60591.0,0.132031]
[1724159558529,0.1417,60592.0,60591.0,0.396096]
[1724159559613,0.0638,60591.0,60588.0,0.264077]
[1724159559816,0.0638,60589.0,60588.0,0.132039]
[1724159560020,0.1406,60589.0,60588.0,0.232039]
[1724159560946,0.1406,60589.0,60588.0,0.241039]
[1724159561949,0.1406,60589.0,60588.0,0.251039]
[1724159562148,0.536711,60589.0,60588.0,0.019]
[1724159562352,0.54163534,60589.0,60588.0,0.019]
[1724159562560,0.80570934,60589.0,60588.0,0.019]
[1724159562801,0.94095647,60589.0,60588.0,0.019]
[1724159563004,0.0763,60577.0,60574.0,0.264138]
[1724159563219,0.0629,60578.0,60571.0,0.07496589]
[1724159563220,0.00092434,60575.0,60572.0,0.18144426]
[1724159563491,0.00092434,60575.0,60571.0,0.2650595]
[1724159563492,0.1428,60574.0,60573.0,0.132072]
[1724159563686,0.1428,60574.0,60571.0,0.31443176]
[1724159563687,0.00292434,60573.0,60572.0,0.132074]
[1724159564008,0.0828,60573.0,60572.0,0.132074]
[1724159564126,0.0828,60573.0,60572.0,0.396222]
[1724159564325,0.0828,60573.0,60572.0,0.405222]
[1724159564530,0.08372434,60573.0,60572.0,0.141074]
[1724159564730,0.08547217,60573.0,60572.0,0.132074]
[1724159564930,0.08254783,60573.0,60572.0,0.132074]
[1724159565143,0.08254783,60573.0,60572.0,0.135074]
[1724159565346,0.08547217,60573.0,60572.0,0.399222]
[1724159565557,0.08254783,60573.0,60572.0,0.499222]
[1724159566009,0.08254783,60573.0,60572.0,0.502222]
[1724159567908,0.08254783,60573.0,60572.0,0.76637]
[1724159568227,0.08254783,60573.0,60572.0,0.502222]
[1724159568659,0.08254783,60573.0,60572.0,0.106]
[1724159568853,0.08254783,60573.0,60572.0,0.138074]
[1724159569052,0.14734783,60573.0,60572.0,0.238074]
[1724159569703,0.14827217,60573.0,60572.0,0.238074]
[1724159569901,0.15027217,60573.0,60572.0,0.106]
[1724159570105,0.15027217,60573.0,60572.0,0.006]
[1724159570522,0.14734783,60573.0,60572.0,0.138074]
[1724159570720,0.14734783,60573.0,60572.0,0.238074]
[1724159570863,0.14734783,60573.0,60572.0,0.106]
[1724159570864,0.14827217,60573.0,60572.0,0.106]
[1724159571294,0.14827217,60573.0,60572.0,0.238074]
[1724159571904,0.15027217,60573.0,60572.0,0.238074]
[1724159572716,0.14734783,60573.0,60572.0,0.238074]
[1724159573055,0.14827217,60573.0,60572.0,0.238074]
[1724159573487,0.15027217,60573.0,60572.0,0.238074]
[1724159574301,0.14734783,60573.0,60572.0,0.238074]
[1724159574709,0.14827217,60573.0,60572.0,0.238074]
[1724159575420,0.14734783,60573.0,60572.0,0.238074]
[1724159576919,0.14734783,60573.0,60572.0,0.2389815]
[1724159577117,0.14817283,60573.0,60572.0,0.2389815]
[1724159578122,0.28316917,60573.0,60572.0,0.0069075]
[1724159579149,0.28316917,60573.0,60572.0,0.0039075]
[1724159579524,0.28916917,60573.0,60572.0,0.0039075]
[1724159580308,0.15417283,60573.0,60572.0,0.0009075]
[1724159580588,0.15417283,60573.0,60572.0,0.1329815]
[1724159580789,0.16203242,60573.0,60572.0,0.1339815]
[1724159580976,0.15603242,60573.0,60572.0,0.1339815]
[1724159581210,0.14903242,60573.0,60572.0,0.1329815]
[1724159581421,0.14903242,60573.0,60571.0,0.0009075]
[1724159581422,0.66329434,60572.0,60571.0,0.0009075]
[1724159581628,0.80989434,60572.0,60571.0,0.0009075]
[1724159582246,0.97389732,60572.0,60571.0,0.0009075]
[1724159582863,1.23804532,60572.0,60571.0,0.0009075]
[1724159584176,1.23890491,60572.0,60571.0,0.0009075]
[1724159584573,1.25190491,60572.0,60571.0,0.0019075]
[1724159584778,1.25765274,60572.0,60571.0,0.0019075]
[1724159585238,1.25165274,60572.0,60571.0,0.0019075]
[1724159585738,1.25165274,60572.0,60571.0,0.0029075]
[1724159585739,0.99850474,60572.0,60571.0,0.0029075]
[1724159588040,0.83450176,60572.0,60571.0,0.0029075]
[1724159588999,0.56960593,60572.0,60571.0,0.0029075]
[1724159589226,0.56860593,60572.0,60571.0,0.0029075]
[1724159589478,0.83450176,60572.0,60571.0,0.0029075]
[1724159589694,0.83532676,60572.0,60571.0,0.0029075]
[1724159590141,1.26347774,60572.0,60571.0,0.0029075]
[1724159590379,1.37350692,60572.0,60571.0,0.0029075]
[1724159591318,1.26347774,60572.0,60571.0,0.0029075]
[1724159593418,0.99932974,60572.0,60571.0,0.0029075]
[1724159595482,0.83532676,60572.0,60571.0,0.0029075]
[1724159595689,0.57117876,60572.0,60571.0,0.0029075]
[1724159597171,0.83532676,60572.0,60571.0,0.0029075]
[1724159597945,0.99932974,60572.0,60571.0,0.0029075]
[1724159600402,0.99932974,60572.0,60569.0,0.0009075]
[1724159600403,0.66506417,60570.0,60569.0,0.0009075]
[1724159600608,2.00355647,60570.0,60569.0,0.0009075]
[1724159600815,1.34916263,60570.0,60569.0,0.0009075]
[1724159600983,1.60608115,60570.0,60569.0,0.0009075]
[1724159601188,1.77005993,60570.0,60569.0,0.0009075]
[1724159601626,1.77905993,60570.0,60569.0,0.0019075]
[1724159601825,1.79305993,60570.0,60569.0,0.0019075]
[1724159602695,1.79305993,60570.0,60569.0,0.0009075]
[1724159602696,1.78405993,60570.0,60569.0,0.0009075]
[1724159602863,1.78491952,60570.0,60569.0,0.0009075]
[1724159603027,1.79891952,60570.0,60569.0,0.0019075]
[1724159604940,1.79866735,60570.0,60569.0,0.0019075]
[1724159606676,2.34866735,60570.0,60569.0,0.0019075]
[1724159607334,2.61282435,60570.0,60569.0,0.0019075]
[1724159607544,1.193261,60563.0,60559.0,0.0118551]
[1724159607716,1.193261,60563.0,60546.0,0.0012893]
[1724159607717,0.00442,60553.0,60546.0,0.0012893]
[1724159607921,1.51893098,60553.0,60546.0,0.0012893]
[1724159608125,1.78316198,60553.0,60546.0,0.0012893]
[1724159608323,1.94714076,60553.0,60546.0,0.0012893]
[1724159608935,1.94814076,60553.0,60546.0,0.0012893]
[1724159609144,1.95114076,60553.0,60546.0,0.0012893]
[1724159609346,1.94714076,60553.0,60546.0,0.0012893]
[1724159610454,1.94800035,60553.0,60546.0,0.0012893]
[1724159610868,1.97600035,60553.0,60546.0,0.0012893]
[1724159611277,1.94800035,60553.0,60546.0,0.0012893]
[1724159611515,1.96200035,60553.0,60546.0,0.0012893]
[1724159611713,1.97600035,60553.0,60546.0,0.0012893]
[1724159612067,1.54779057,60553.0,60546.0,0.0012893]
[1724159613511,1.54779057,60553.0,60552.0,5.0009075]
[1724159614349,1.53379057,60553.0,60552.0,5.0009075]
[1724159614771,1.54779057,60553.0,60552.0,5.0009075]
[1724159614931,1.53379057,60553.0,60552.0,5.0009075]
[1724159615313,1.54779057,60553.0,60552.0,5.0009075]
[1724159615516,1.70256963,60553.0,60552.0,5.0009075]
[1724159615697,1.54779057,60553.0,60552.0,5.0009075]
[1724159618630,1.81202157,60553.0,60552.0,5.0009075]
[1724159618803,1.54764539,60553.0,60552.0,5.0009075]
[1724159619277,1.81187639,60553.0,60552.0,5.0009075]
[1724159619476,1.97585517,60553.0,60552.0,5.0009075]
[1724159620090,1.96185517,60553.0,60552.0,5.0009075]
[1724159620329,1.54764539,60553.0,60552.0,5.0009075]
[1724159621170,1.53364539,60553.0,60552.0,5.0009075]
[1724159621369,1.51964539,60553.0,60552.0,5.0009075]
[1724159621527,1.53364539,60553.0,60552.0,5.0009075]
[1724159622111,1.54764539,60553.0,60552.0,5.0009075]
[1724159622310,1.70240993,60553.0,60552.0,5.0009075]
[1724159622723,1.54764539,60553.0,60552.0,5.0009075]
[1724159623428,0.03313441,60553.0,60552.0,5.0009075]
[1724159623749,0.16524941,60553.0,60552.0,5.0009075]
[1724159624180,0.15124941,60553.0,60552.0,5.0009075]
[1724159624385,0.13724941,60553.0,60552.0,5.0009075]
[1724159624702,0.41548041,60553.0,60552.0,5.0009075]
[1724159624892,0.16499724,60553.0,60552.0,5.0009075]
[1724159625304,0.85746222,60553.0,60552.0,5.0009075]
[1724159626982,0.59323122,60553.0,60552.0,5.0009075]
[1724159627387,0.42922824,60553.0,60552.0,5.0009075]
[1724159628885,0.16499724,60553.0,60552.0,5.0009075]
[1724159629291,0.03288224,60553.0,60552.0,5.0009075]
[1724159629665,0.03288224,60553.0,60552.0,5.0662075]
[1724159629876,0.0299579,60553.0,60552.0,5.0662075]
[1724159630083,0.03088224,60553.0,60552.0,5.0662075]
[1724159630908,0.03288224,60553.0,60552.0,5.0662075]
[1724159631885,0.03178393,60553.0,60552.0,5.0662075]
[1724159633156,0.02885959,60553.0,60552.0,5.1983245]
[1724159633568,0.02885959,60553.0,60552.0,5.4625595]
[1724159634180,0.01485959,60553.0,60552.0,5.4625595]
[1724159634357,0.02878393,60553.0,60552.0,5.7497945]
[1724159634566,0.03127959,60553.0,60552.0,5.0009075]
[1724159634790,0.14999724,60553.0,60552.0,5.0009075]
[1724159634919,0.01788224,60553.0,60552.0,5.0009075]
[1724159635118,0.42822824,60553.0,60552.0,5.0009075]
[1724159635341,0.67845924,60553.0,60552.0,5.0009075]
[1724159635858,0.69145924,60553.0,60552.0,5.0009075]
[1724159636865,0.93686222,60553.0,60552.0,5.0009075]
[1724159637879,0.93768722,60553.0,60552.0,5.0009075]
[1724159638775,0.92468722,60553.0,60552.0,5.0009075]
[1724159639143,0.93568722,60553.0,60552.0,5.0009075]
[1724159640061,1.19991822,60553.0,60552.0,5.0009075]
[1724159640276,1.26581822,60553.0,60552.0,5.0009075]
[1724159641942,1.36155416,60553.0,60552.0,5.0009075]
[1724159642361,1.26581822,60553.0,60552.0,5.0009075]
[1724159643810,1.3615562,60553.0,60552.0,5.0009075]
[1724159644019,1.26581822,60553.0,60552.0,5.0009075]
[1724159644230,1.36155888,60553.0,60552.0,5.0009075]
[1724159644433,1.26581822,60553.0,60552.0,5.0009075]
[1724159646295,1.00158722,60553.0,60552.0,5.0009075]
[1724159647122,0.67145622,60553.0,60552.0,5.0009075]
[1724159647332,0.02970724,60553.0,60552.0,5.0009075]
[1724159647742,0.02860893,60553.0,60552.0,5.0009075]
[1724159647946,0.02568459,60553.0,60552.0,5.2618245]
[1724159648154,0.02568459,60553.0,60552.0,5.5260595]
[1724159649434,0.02568459,60553.0,60552.0,5.2618245]
[1724159649632,0.02860893,60553.0,60552.0,5.0009075]
[1724159650041,0.02910459,60553.0,60552.0,5.0009075]
[1724159650294,0.16182224,60553.0,60552.0,5.0009075]
[1724159650985,0.02970724,60553.0,60552.0,5.0009075]
[1724159651440,0.02860893,60553.0,60552.0,5.0009075]
[1724159652880,0.02568459,60553.0,60552.0,5.1976245]
[1724159653120,0.02660893,60553.0,60552.0,5.4618595]
[1724159653629,0.02568459,60553.0,60552.0,5.4618595]
[1724159654097,0.02660893,60553.0,60552.0,5.4618595]
[1724159654568,0.02860893,60553.0,60552.0,5.4618595]
[1724159655043,0.01468459,60553.0,60552.0,5.4618595]
[1724159655546,0.00568459,60553.0,60552.0,5.4618595]
[1724159656175,0.01168459,60553.0,60552.0,5.4618595]
[1724159656427,0.01168459,60553.0,60552.0,5.7490945]
[1724159658635,0.01168459,60553.0,60552.0,6.7490945]
[1724159659080,0.01168459,60553.0,60552.0,7.0133295]
[1724159659298,0.01168459,60553.0,60552.0,7.0815295]
[1724159660351,0.01260893,60553.0,60552.0,7.0815295]
[1724159660562,0.01460893,60553.0,60552.0,7.0815295]
[1724159660741,0.01168459,60553.0,60552.0,7.0815295]
[1724159661796,0.01168459,60553.0,60552.0,7.13099686]
[1724159662031,0.01168459,60553.0,60552.0,7.39499984]
[1724159662265,0.01168459,60553.0,60552.0,7.34553248]
[1724159662481,0.01168459,60553.0,60552.0,7.78579651]
[1724159662897,0.00768459,60553.0,60552.0,7.78579651]
[1724159663124,0.00268459,60553.0,60552.0,7.78579651]
[1724159663344,0.00268459,60553.0,60552.0,7.34753248]
[1724159663543,0.00268459,60553.0,60552.0,7.42169637]
[1724159663664,0.00268459,60553.0,60552.0,7.34753248]
[1724159663867,0.00268459,60553.0,60552.0,7.42169637]
[1724159664070,0.00268459,60553.0,60552.0,7.34753248]
[1724159666159,0.00268459,60553.0,60552.0,7.39695467]
[1724159666361,0.00268459,60553.0,60552.0,7.34753248]
[1724159668272,0.00268459,60553.0,60552.0,7.39694991]
[1724159669251,0.00268459,60553.0,60552.0,7.39694829]
[1724159671904,0.00268459,60553.0,60552.0,7.39694157]
[1724159672370,0.00268459,60553.0,60552.0,6.7864945]
[1724159672602,0.00360893,60553.0,60552.0,6.4992595]
[1724159672835,0.00268459,60553.0,60552.0,6.4992595]
[1724159673072,0.00360893,60553.0,60552.0,6.4992595]
[1724159673552,0.00268459,60553.0,60552.0,6.4992595]
[1724159673795,0.00268459,60553.0,60552.0,6.4972595]
[1724159674026,0.00360893,60553.0,60552.0,6.5202595]
[1724159674442,0.00360893,60553.0,60552.0,6.7844945]
[1724159674443,0.00268459,60553.0,60552.0,6.7844945]
[1724159674899,0.00168459,60553.0,60552.0,6.7844945]
[1724159675248,0.00860893,60553.0,60552.0,6.6844945]
[1724159675447,0.00368459,60553.0,60552.0,6.6844945]
[1724159675648,0.00168459,60553.0,60552.0,6.6844945]
[1724159675850,0.00568459,60553.0,60552.0,6.6844945]
[1724159676047,0.00768459,60553.0,60552.0,6.6844945]
[1724159676867,0.00168459,60553.0,60552.0,6.6844945]
[1724159677103,0.00568459,60553.0,60552.0,6.6844945]
[1724159677341,0.00568459,60553.0,60552.0,6.4202595]
[1724159677618,0.08470893,60553.0,60552.0,6.4202595]
[1724159678310,0.08670893,60553.0,60552.0,6.4202595]
[1724159678529,0.08270893,60553.0,60552.0,6.4202595]
[1724159678779,0.14520893,60553.0,60552.0,6.4202595]
[1724159679008,0.14781158,60553.0,60552.0,6.0009075]
[1724159679240,0.14630724,60553.0,60552.0,6.0009075]
[1724159679460,0.07978459,60553.0,60552.0,6.3972595]
[1724159679685,0.08378459,60553.0,60552.0,6.3972595]
[1724159679880,0.08178459,60553.0,60552.0,6.3972595]
[1724159680180,0.08470893,60553.0,60552.0,6.3972595]
[1724159680414,0.08470893,60553.0,60552.0,6.4202595]
[1724159680653,0.08070893,60553.0,60552.0,6.4202595]
[1724159680891,0.07978459,60553.0,60552.0,6.4202595]
[1724159682056,0.07978459,60553.0,60552.0,6.6844945]
[1724159682314,0.00768459,60553.0,60552.0,7.17583248]
[1724159683272,0.00568459,60553.0,60552.0,7.17583248]
[1724159683516,0.00268459,60553.0,60552.0,7.17583248]
[1724159684054,0.00268459,60553.0,60552.0,6.9517295]
[1724159684317,0.00268459,60553.0,60552.0,6.6874945]
[1724159684561,0.07948459,60553.0,60552.0,6.6874945]
[1724159685222,0.07940893,60553.0,60552.0,6.4232595]
[1724159685465,0.07848459,60553.0,60552.0,6.4232595]
[1724159685714,0.07948459,60553.0,60552.0,6.4232595]
[1724159685948,0.07948459,60553.0,60552.0,6.4202595]
[1724159686199,0.07940893,60553.0,60552.0,6.4202595]
[1724159686439,0.14048459,60553.0,60552.0,6.4232595]
[1724159686681,0.14048459,60553.0,60552.0,6.4202595]
[1724159686914,0.14048459,60553.0,60552.0,6.4212595]
[1724159687379,0.14048459,60553.0,60552.0,6.4202595]
[1724159687613,0.08248459,60553.0,60552.0,6.4202595]
[1724159687884,0.00568459,60553.0,60552.0,6.4202595]
[1724159689114,0.00168459,60553.0,60552.0,6.4202595]
[1724159689331,0.00268459,60553.0,60552.0,6.4202595]
[1724159693272,0.00268459,60553.0,60552.0,6.7526945]
[1724159693510,0.00268459,60553.0,60552.0,7.09105331]
[1724159694023,0.00268459,60553.0,60552.0,7.4571699]
[1724159694494,0.00268459,60553.0,60552.0,7.3889699]
[1724159697146,0.00268459,60553.0,60552.0,7.05061109]
[1724159697357,0.00560893,60553.0,60552.0,7.05061109]
[1724159697580,0.14960893,60553.0,60552.0,6.73400652]
[1724159697787,0.14668459,60553.0,60552.0,6.73400652]
[1724159697992,0.14668459,60553.0,60552.0,6.6844945]
[1724159697993,0.14960893,60553.0,60552.0,6.6844945]
[1724159698193,0.14960893,60553.0,60552.0,6.4202595]
[1724159698624,0.14960893,60553.0,60552.0,5.4202595]
[1724159699250,0.14668459,60553.0,60552.0,5.4202595]
[1724159699456,0.00268459,60553.0,60552.0,5.4202595]
[1724159699868,0.00268459,60553.0,60552.0,5.73401011]
[1724159700071,0.00268459,60553.0,60552.0,5.73400991]
[1724159700276,0.00268459,60553.0,60552.0,6.12489962]
[1724159700477,0.00268459,60553.0,60552.0,5.734012]
[1724159700676,0.00268459,60553.0,60552.0,5.73401175]
[1724159701088,0.00560893,60553.0,60552.0,5.73401175]
[1724159701494,0.00560893,60553.0,60552.0,5.46977675]
[1724159701695,0.00268459,60553.0,60552.0,5.46977675]
[1724159702080,0.00560893,60553.0,60552.0,5.46977675]
[1724159702311,0.00268459,60553.0,60552.0,5.4202595]
[1724159702547,0.00560893,60553.0,60552.0,5.4202595]
[1724159702808,0.00268459,60553.0,60552.0,5.4202595]
[1724159703944,0.00268459,60553.0,60552.0,5.46978305]
[1724159704151,0.00268459,60553.0,60552.0,5.4202595]
[1724159705628,0.00360893,60553.0,60552.0,5.4202595]
[1724159706033,0.07988459,60553.0,60552.0,5.4202595]
[1724159706235,0.08080893,60553.0,60552.0,5.4202595]
[1724159706442,0.14280893,60553.0,60552.0,5.0239075]
[1724159708294,0.80448424,60553.0,60552.0,5.0009075]
[1724159709122,0.80348424,60553.0,60552.0,5.0009075]
[1724159709538,0.54125324,60553.0,60552.0,5.0009075]
[1724159709750,0.13888459,60553.0,60552.0,5.0009075]
[1724159709949,0.13888459,60553.0,60552.0,5.0239075]
[1724159710180,0.14288459,60553.0,60552.0,5.0239075]
[1724159711004,0.14488459,60553.0,60552.0,5.0239075]
[1724159711410,0.14288459,60553.0,60552.0,5.0239075]
[1724159711787,0.14488459,60553.0,60552.0,5.0239075]
[1724159712143,0.14088459,60553.0,60552.0,5.0239075]
[1724159712370,0.14088459,60553.0,60552.0,5.1560245]
[1724159712570,0.14488459,60553.0,60552.0,5.1560245]
[1724159712925,0.00368459,60553.0,60552.0,5.4202595]
[1724159713134,0.00168459,60553.0,60552.0,5.4202595]
[1724159713331,0.00368459,60553.0,60552.0,5.75876011]
[1724159713538,0.00368459,60553.0,60552.0,6.12488016]
[1724159714308,0.00168459,60553.0,60552.0,6.12488234]
[1724159714532,0.06658459,60553.0,60552.0,5.73400655]
[1724159714852,0.14428459,60553.0,60552.0,5.6844945]
[1724159715732,0.14620893,60553.0,60552.0,5.6844945]
[1724159715936,0.14528459,60553.0,60552.0,5.6844945]
[1724159717365,0.00268459,60553.0,60552.0,5.6844945]
[1724159718257,0.00268459,60553.0,60552.0,6.12490924]
[1724159718607,0.00268459,60553.0,60552.0,5.75877843]
[1724159718817,0.00268459,60553.0,60552.0,6.12490905]
[1724159719627,0.00268459,60553.0,60552.0,6.05062512]
[1724159719834,0.00268459,60553.0,60552.0,6.12491799]
[1724159720040,0.00268459,60553.0,60552.0,6.05062512]
[1724159720468,0.00268459,60553.0,60552.0,5.73402372]
[1724159720693,0.00360893,60553.0,60552.0,5.6844945]
[1724159721032,0.00560893,60553.0,60552.0,5.73402355]
[1724159721443,0.00560893,60553.0,60552.0,5.73402382]
[1724159721650,0.00268459,60553.0,60552.0,5.73402382]
[1724159722446,0.13319831,60560.0,60552.0,5.73402382]
[1724159722447,0.09824321,60574.0,60553.0,0.0268]
[1724159722659,0.16578542,60586.0,60553.0,0.0268]
[1724159722660,0.000825,60572.0,60571.0,0.396228]
[1724159722867,0.079725,60572.0,60571.0,0.52108855]
[1724159723087,0.142225,60572.0,60571.0,0.09726879]
[1724159723312,0.14514934,60572.0,60571.0,0.023]
[1724159723518,0.00292434,60569.0,60566.0,0.04948685]
[1724159723728,0.00292434,60569.0,60565.0,0.04948685]
[1724159723729,0.07782265,60566.0,60565.0,0.04948685]
[1724159723950,0.07982265,60566.0,60565.0,0.023]
[1724159724161,0.07629566,60566.0,60565.0,0.023]
[1724159724362,0.07629566,60566.0,60564.0,0.155091]
[1724159724628,0.07629566,60566.0,60565.0,0.132089]
[1724159724777,0.07629566,60566.0,60565.0,0.155089]
[1724159725206,0.07782265,60566.0,60565.0,0.155089]
[1724159725414,0.07882265,60566.0,60565.0,0.155089]
[1724159725763,0.08082265,60566.0,60565.0,0.155089]
[1724159726568,0.08082265,60566.0,60565.0,0.419267]
[1724159726569,0.0768,60566.0,60565.0,0.419267]
[1724159726790,0.0758,60566.0,60565.0,0.683445]
[1724159727139,0.063325,60572.0,60571.0,0.396228]
[1724159727343,0.063325,60572.0,60571.0,0.419228]
[1724159727552,0.142525,60572.0,60571.0,0.419228]
[1724159728179,0.142525,60572.0,60571.0,0.68338]
[1724159728180,0.080025,60572.0,60571.0,0.68338]
[1724159728398,0.000825,60572.0,60571.0,0.68338]
[1724159728597,0.000825,60572.0,60571.0,0.947532]
[1724159730060,0.001825,60572.0,60571.0,0.947532]
[1724159733392,0.001825,60572.0,60571.0,1.047532]
[1724159733815,0.001825,60572.0,60571.0,1.21153498]
[1724159734016,0.000825,60572.0,60571.0,1.21153498]
[1724159734244,0.084025,60572.0,60571.0,0.68638]
[1724159734487,0.084025,60572.0,60571.0,0.66338]
[1724159734719,0.084025,60572.0,60571.0,0.399228]
[1724159735185,0.082025,60572.0,60571.0,0.396228]
[1724159735646,0.083025,60572.0,60571.0,0.419228]
[1724159735911,0.083025,60572.0,60571.0,0.68338]
[1724159736176,0.083025,60572.0,60571.0,0.419228]
[1724159736421,0.083025,60572.0,60568.0,0.264164]
[1724159736422,0.00109831,60571.0,60568.0,0.264164]
[1724159736626,0.00292434,60569.0,60568.0,0.396246]
[1724159736844,0.08482265,60565.0,60564.0,0.132091]
[1724159737044,0.0808,60565.0,60564.0,0.396274]
[1724159737219,0.0808,60565.0,60564.0,0.660457]
[1724159737865,0.08372434,60565.0,60564.0,0.660457]
[1724159738040,0.0808,60565.0,60564.0,0.396274]
[1724159738268,0.0808,60565.0,60564.0,0.419274]
[1724159740028,0.0818,60565.0,60564.0,0.419274]
[1724159740251,0.0818,60565.0,60564.0,0.421274]
[1724159740496,0.0818,60565.0,60564.0,0.685457]
[1724159740727,0.0818,60565.0,60564.0,0.421274]
[1724159741808,0.001,60565.0,60564.0,0.421274]
[1724159743175,0.00392434,60565.0,60564.0,0.157091]
[1724159743380,0.08432434,60565.0,60564.0,0.157091]
[1724159743581,0.0814,60565.0,60564.0,0.421274]
[1724159744003,0.0804,60565.0,60564.0,0.419274]
[1724159744422,0.08132434,60565.0,60564.0,0.420274]
[1724159744624,0.08332434,60565.0,60564.0,0.024]
[1724159744857,0.14762434,60565.0,60564.0,0.001]
[1724159745063,0.14762434,60565.0,60564.0,0.024]
[1724159745439,0.14762434,60565.0,60564.0,0.001]
[1724159745676,0.14762434,60565.0,60564.0,0.133091]
[1724159745857,0.1447,60565.0,60564.0,0.156091]
[1724159746331,0.0804,60565.0,60564.0,0.156091]
[1724159746718,0.08132434,60565.0,60564.0,0.156091]
[1724159747065,0.08332434,60565.0,60564.0,0.156091]
[1724159747606,0.0804,60565.0,60564.0,0.156091]
[1724159747770,0.08132434,60565.0,60564.0,0.156091]
[1724159747975,0.08332434,60565.0,60564.0,0.024]
[1724159748203,0.08332434,60565.0,60564.0,0.001]
[1724159749187,0.0804,60565.0,60564.0,0.001]
[1724159749385,0.0804,60565.0,60564.0,0.133091]
[1724159749601,0.0804,60565.0,60564.0,0.156091]
[1724159749844,0.0804,60565.0,60564.0,0.024]
[1724159750049,0.0804,60565.0,60564.0,0.156091]
[1724159751573,0.0804,60565.0,60564.0,0.420274]
[1724159753591,0.0804,60565.0,60564.0,0.156091]
[1724159753828,0.0804,60565.0,60564.0,0.024]
[1724159754045,0.14792265,60565.0,60564.0,0.001]
[1724159754656,0.14992265,60565.0,60564.0,0.001]
[1724159755263,0.28201165,60565.0,60564.0,0.001]
[1724159757637,0.27848466,60565.0,60564.0,0.001]